Workbook

Sheet 2022年7月
A1: 陆 丰 市 2022 年 7 月 财 政 预 算 收 入 完 成 情 况 表
A2: 2022-07-31 | L2: 单位：万元
B3: 年 度 | C3: 累 计 | D3: 占 年 | E3: 上 年 | F3: 比上年 | G3: 比上年 | H3: 本 月 | I3: 上 年 | J3: 比上年 | K3: 比上年
A4: 收 入 项 目 | B4: 预 算 | C4: 完 成 | D4: 预 算 | E4: 同 期 | F4: 同期增 | G4: 同期增 | H4: 完 成 | I4: 同 月 | J4: 同月增 | K4: 同月增 | L4: 备 注
B5: 数 | C5: 数 | D5: % | E5: 完 成 | F5: 减额 | G5: (减)% | H5: 数 | I5: 完 成 | J5: 减额 | K5: (减)%
A6: （一）税收收入 | B6: =SUM(B7:B20) -> 62,550 | C6: =SUM(C7:C20) -> 27,344 | D6: =C6/B6*100 -> 43.7 | E6: =SUM(E7:E20) -> 33,672 | F6: =C6-E6 -> -6,328 | G6: =F6/E6*100 -> -18.8 | H6: =SUM(H7:H20) -> 2,343 | I6: =SUM(I7:I20) -> 4,396 | J6: =H6-I6 -> -2,053 | K6: =J6/I6*100 -> -46.7
A7: 1、增值税 | B7: 15,532 | C7: 6,908 | D7: =C7/B7*100 -> 44.5 | E7: 8,419 | F7: =C7-E7 -> -1,511 | G7: =F7/E7*100 -> -17.9 | H7: =C7-'[1]2022年6月 '!C7 -> -352 | I7: =E7-'[1]2022年6月 '!E7 -> 1,363 | J7: =H7-I7 -> -1,715 | K7: =J7/I7*100 -> -125.8
A8: 2、企业所得税 | B8: 7,150 | C8: 3,175 | D8: =C8/B8*100 -> 44.4 | E8: 5,400 | F8: =C8-E8 -> -2,225 | G8: =F8/E8*100 -> -41.2 | H8: =C8-'[1]2022年6月 '!C8 -> 677 | I8: =E8-'[1]2022年6月 '!E8 -> 749 | J8: =H8-I8 -> -72 | K8: =J8/I8*100 -> -9.6
A9: 3、个人所得税 | B9: 1,403 | C9: 389 | D9: =C9/B9*100 -> 27.7 | E9: 706 | F9: =C9-E9 -> -317 | G9: =F9/E9*100 -> -44.9 | H9: =C9-'[1]2022年6月 '!C9 -> 107 | I9: =E9-'[1]2022年6月 '!E9 -> 85 | J9: =H9-I9 -> 22 | K9: =J9/I9*100 -> 25.9
A10: 4、资源税 | B10: 1,408 | C10: 52 | D10: =C10/B10*100 -> 3.7 | E10: 619 | F10: =C10-E10 -> -567 | G10: =F10/E10*100 -> -91.6 | H10: =C10-'[1]2022年6月 '!C10 -> 3 | I10: =E10-'[1]2022年6月 '!E10 -> 4 | J10: =H10-I10 -> -1 | K10: =J10/I10*100 -> -25.0
A11: 5、城市维护建设税 | B11: 5,715 | C11: 2,715 | D11: =C11/B11*100 -> 47.5 | E11: 2,999 | F11: =C11-E11 -> -284 | G11: =F11/E11*100 -> -9.5 | H11: =C11-'[1]2022年6月 '!C11 -> 357 | I11: =E11-'[1]2022年6月 '!E11 -> 462 | J11: =H11-I11 -> -105 | K11: =J11/I11*100 -> -22.7
A12: 6、房产税 | B12: 1,839 | C12: 1,535 | D12: =C12/B12*100 -> 83.5 | E12: 223 | F12: =C12-E12 -> 1,312 | G12: =F12/E12*100 -> 588.3 | H12: =C12-'[1]2022年6月 '!C12 -> 31 | I12: =E12-'[1]2022年6月 '!E12 -> 10 | J12: =H12-I12 -> 21 | K12: =J12/I12*100 -> 210.0
A13: 7、印花税 | B13: 1,785 | C13: 1,644 | D13: =C13/B13*100 -> 92.1 | E13: 929 | F13: =C13-E13 -> 715 | G13: =F13/E13*100 -> 77.0 | H13: =C13-'[1]2022年6月 '!C13 -> 432 | I13: =E13-'[1]2022年6月 '!E13 -> 143 | J13: =H13-I13 -> 289 | K13: =J13/I13*100 -> 202.1
A14: 8、城镇土地使用税 | B14: 1,905 | C14: 569 | D14: =C14/B14*100 -> 29.9 | E14: 194 | F14: =C14-E14 -> 375 | G14: =F14/E14*100 -> 193.3 | H14: =C14-'[1]2022年6月 '!C14 -> 20 | I14: =E14-'[1]2022年6月 '!E14 -> 2 | J14: =H14-I14 -> 18 | K14: =J14/I14*100 -> 900.0
A15: 9、土地增值税 | B15: 7,005 | C15: 3,796 | D15: =C15/B15*100 -> 54.2 | E15: 3,165 | F15: =C15-E15 -> 631 | G15: =F15/E15*100 -> 19.9 | H15: =C15-'[1]2022年6月 '!C15 -> 313 | I15: =E15-'[1]2022年6月 '!E15 -> 233 | J15: =H15-I15 -> 80 | K15: =J15/I15*100 -> 34.3
A16: 10、车船使用税 | B16: 1,714 | C16: 975 | D16: =C16/B16*100 -> 56.9 | E16: 847 | F16: =C16-E16 -> 128 | G16: =F16/E16*100 -> 15.1 | H16: =C16-'[1]2022年6月 '!C16 -> 127 | I16: =E16-'[1]2022年6月 '!E16 -> 118 | J16: =H16-I16 -> 9 | K16: =J16/I16*100 -> 7.6
A17: 11、环保税 | B17: 135 | C17: 162 | D17: =C17/B17*100 -> 120.0 | E17: 101 | F17: =C17-E17 -> 61 | G17: =F17/E17*100 -> 60.4 | H17: =C17-'[1]2022年6月 '!C17 -> 30 | I17: =E17-'[1]2022年6月 '!E17 -> 37 | J17: =H17-I17 -> -7 | K17: =J17/I17*100 -> -18.9
A18: 12、耕地占用税 | B18: 5,752 | C18: 2,039 | D18: =C18/B18*100 -> 35.4 | E18: 3,136 | F18: =C18-E18 -> -1,097 | G18: =F18/E18*100 -> -35.0 | H18: =C18-'[1]2022年6月 '!C18 -> 92 | I18: =E18-'[1]2022年6月 '!E18 -> 29 | J18: =H18-I18 -> 63 | K18: =J18/I18*100 -> 217.2
A19: 13、契 税 | B19: 11,206 | C19: 3,371 | D19: =C19/B19*100 -> 30.1 | E19: 6,933 | F19: =C19-E19 -> -3,562 | G19: =F19/E19*100 -> -51.4 | H19: =C19-'[1]2022年6月 '!C19 -> 492 | I19: =E19-'[1]2022年6月 '!E19 -> 1,161 | J19: =H19-I19 -> -669 | K19: =J19/I19*100 -> -57.6
A20: 14、其他税收收入 | B20: 1 | C20: 14 | D20: =C20/B20*100 -> 1400.0 | E20: 1 | F20: =C20-E20 -> 13 | G20: =F20/E20*100 -> 1,300.0 | H20: =C20-'[1]2022年6月 '!C20 -> 14 | I20: =E20-'[1]2022年6月 '!E20 -> 0
A21: （二）非税收入 | B21: =SUM(B22:B29) -> 51,425 | C21: =SUM(C22:C29) -> 36,129 | D21: =C21/B21*100 -> 70.3 | E21: =E22+E23+E24+E25+E26+E27+E28+E29 -> 27,198 | F21: =C21-E21 -> 8,931 | G21: =F21/E21*100 -> 32.8 | H21: =H22+H23+H24+H25+H26+H27+H28+H29 -> 875 | I21: =I22+I23+I24+I25+I26+I27+I28+I29 -> 675 | J21: =H21-I21 -> 200 | K21: =J21/I21*100 -> 29.6
A22: 1、专项收入 | B22: 10,050 | C22: 1,910 | D22: =C22/B22*100 -> 19.0 | E22: 4,532 | F22: =C22-E22 -> -2,622 | G22: =F22/E22*100 -> -57.9 | H22: =C22-'[1]2022年6月 '!C22 -> 247 | I22: =E22-'[1]2022年6月 '!E22 -> 342 | J22: =H22-I22 -> -95 | K22: =J22/I22*100 -> -27.8
A23: 2、行政事业性收费收入 | B23: 13,700 | C23: 4,444 | D23: =C23/B23*100 -> 32.4 | E23: 9,742 | F23: =C23-E23 -> -5,298 | G23: =F23/E23*100 -> -54.4 | H23: =C23-'[1]2022年6月 '!C23 -> 626 | I23: =E23-'[1]2022年6月 '!E23 -> 257 | J23: =H23-I23 -> 369 | K23: =J23/I23*100 -> 143.6
A24: 3、罚没收入 | B24: 6,200 | C24: 9,745 | D24: =C24/B24*100 -> 157.2 | E24: 1,804 | F24: =C24-E24 -> 7,941 | G24: =F24/E24*100 -> 440.2 | H24: =C24-'[1]2022年6月 '!C24 -> -1 | I24: =E24-'[1]2022年6月 '!E24 -> 0 | J24: =H24-I24 -> -1
A25: 4、国有资源（资产）有偿使用收入 | B25: 10,420 | C25: 5,144 | D25: =C25/B25*100 -> 49.4 | E25: 7,028 | F25: =C25-E25 -> -1,884 | G25: =F25/E25*100 -> -26.8 | H25: =C25-'[1]2022年6月 '!C25 -> 5 | I25: =E25-'[1]2022年6月 '!E25 -> 271 | J25: =H25-I25 -> -266 | K25: =J25/I25*100 -> -98.2
A26: 5、政府住房基金收入 | B26: 150 | C26: 106 | D26: =C26/B26*100 -> 70.7 | E26: 290 | F26: =C26-E26 -> -184 | G26: =F26/E26*100 -> -63.4 | H26: 0 | I26: =E26-'[1]2022年6月 '!E26 -> 0 | J26: =H26-I26 -> 0
A27: 6、捐赠收入 | B27: 10,000 | C27: 11,380 | D27: =C27/B27*100 -> 113.8 | E27: 2,535 | F27: =C27-E27 -> 8,845 | G27: =F27/E27*100 -> 348.9 | H27: =C27-'[1]2022年6月 '!C27 -> -1 | I27: =E27-'[1]2022年6月 '!E27 -> 30 | J27: =H27-I27 -> -31 | K27: =J27/I27*100 -> -103.3
A28: 7、其他收入 | B28: 900 | C28: 3,400 | D28: =C28/B28*100 -> 377.8 | E28: 1,267 | F28: =C28-E28 -> 2,133 | G28: =F28/E28*100 -> 168.4 | H28: =C28-'[1]2022年6月 '!C28 -> -1 | I28: =E28-'[1]2022年6月 '!E28 -> -225 | J28: =H28-I28 -> 224 | K28: =J28/I28*100 -> -99.6
A29: 8、国有资本经营收入 | B29: 5 | D29: =C29/B29*100 -> 0.0 | I29: =E29-'[1]2022年6月 '!E29 -> 0
A30: 一、一般公共预算收入 | B30: =B6+B21 -> 113,975 | C30: =C6+C21 -> 63,473 | D30: =C30/B30*100 -> 55.7 | E30: =E6+E21 -> 60,870 | F30: =C30-E30 -> 2,603 | G30: =F30/E30*100 -> 4.3 | H30: =H6+H21 -> 3,218 | I30: =I6+I21 -> 5071 | J30: =H30-I30 -> -1,853 | K30: =J30/I30*100 -> -36.5
A31: 二、政府性基金预算收入小计 | B31: 270,200 | C31: 8,536 | D31: =C31/B31*100 -> 3.2 | E31: 76,651 | F31: =C31-E31 -> -68,115 | G31: =F31/E31*100 -> -88.9 | H31: =C31-'[1]2022年6月 '!C31 -> 528 | I31: =E31-'[1]2022年6月 '!E31 -> 10,448 | J31: =H31-I31 -> -9,920 | K31: =J31/I31*100 -> -94.9
A32: 其中：国有土地使用权出让收入 | B32: 260,050 | C32: 6,337 | D32: =C32/B32*100 -> 2.4 | E32: 75,153 | F32: =C32-E32 -> -68,816 | G32: =F32/E32*100 -> -91.6 | H32: =C32-'[1]2022年6月 '!C32 -> 434 | I32: =E32-'[1]2022年6月 '!E32 -> 10,358 | J32: =H32-I32 -> -9,924 | K32: =J32/I32*100 -> -95.8
A33: 三、国有资本经营收入小计 | B33: 3,500 | C33: 368 | D33: =C33/B33*100 -> 10.5 | E33: 0 | F33: =C33-E33 -> 368 | H33: 0 | J33: =H33-I33 -> 0
A34: 收入合计 | B34: =B30+B31+B33 -> 387,675 | C34: =C30+C31+C33 -> 72,377 | D34: =C34/B34*100 -> 18.7 | E34: =E30+E31+E33 -> 137,521 | F34: =C34-E34 -> -65,144 | G34: =F34/E34*100 -> -47.4 | H34: =H30+H31+H33 -> 3,746 | I34: =I30+I31+I33 -> 15519 | J34: =H34-I34 -> -11,773 | K34: =J34/I34*100 -> -75.9
L35: 陆丰市财政局国库股

Sheet Sheet1

Sheet Sheet2

Sheet Sheet3
